Cogmind - Beta 12 @@@ ROGUE MODE // 2023.07.11 @ 19:56:10 Player: Sara Result: Destroyed by G-47 Trooper with Particle Gun Performance ------------- Evolutions (2) 1000 Regions Visited (5) 1000 Robots Destroyed (122) 610 Value Destroyed (3363) 3363 Prototype IDs (4) 80 Alien Tech Used (0) 0 Bonus (208) 208 TOTAL SCORE: 6261 Bonus ------- High Alert Combat Kills 22 Entered Garrisons 200 Friendly Fire -14 Cogmind --------- Core Integrity 0/550 Matter 184/300 Energy 10/100 System Corruption 0% Temperature Cool (25) Movement Treading (152) Location -8/Materials Parts ------- > --- POWER (2) -------- (None) > --- PROPULSION (3) --- Light Treads Advanced Treads Aluminum Leg > --- UTILITY (4) ------ Large Storage Unit Improved Terrain Scanner Terrain Scan Processor Advanced Targeting Computer > --- WEAPON (2) ------- Assault Cannon Assault Cannon > --- INVENTORY (15) --- Advanced Heat Sink Compact Matter Pod (150) Advanced Weight Redist. System Advanced Targeting Computer Advanced Targeting Computer Relay Coupler [Grunt] (22) Relay Coupler [Grunt] (26) Relay Coupler [Sentry] (21) Relay Coupler [Hunter] (12) Relay Coupler [Hunter] (17) Relay Coupler [Heavy] (12) Assault Cannon Assault Cannon Improved Datajack Heavy Flail Peak State ------------ > --- POWER ------------ Light Nuclear Core Light Nuclear Core > --- PROPULSION ------- Aluminum Leg Carbon-fiber Leg > --- UTILITY ---------- Improved Heat Sink Advanced Heat Sink Large Storage Unit Advanced Targeting Computer > --- WEAPON ----------- Gauss Rifle Heavy Flail > --- INVENTORY -------- Compact Matter Pod Advanced Weight Redist. System Improved Terrain Scanner Terrain Scan Processor Advanced Targeting Computer Advanced Targeting Computer Relay Coupler [Hunter] Relay Coupler [Heavy] Autogun Improved Datajack [Rating: 32] Favorites ----------- Power Ion Engine Engine Ion Engine Power Core Light Nuclear Core Propulsion Light Treads Treads Light Treads Leg Aluminum Leg Utility Large Storage Unit Device Improved Heat Sink Storage Large Storage Unit Processor Advanced Targeting Computer Protection Hardened Light Armor Plating Weapon Autogun Energy Gun Heavy EM Pulse Gun Energy Cannon Advanced Beam Cannon Ballistic Gun Autogun Ballistic Cannon Assault Cannon Impact Weapon Heavy Flail Slashing Weapon Axe Special Melee Weapon Improved Datajack Build | -11 -10 -9 -8 -8 -8 ------- Run | Jun Mat Mat Mat Gar Mat Slots Evolved 4 | . . 2 2 . . Power 1 | . . . 1 . . Propulsion 1 | . . . 1 . . Utility 2 | . . 2 . . . Weapon . | . . . . . . Parts Attached 117 | 6 14 35 27 23 12 Power 12 | 1 . 3 5 3 . Engine 9 | 1 . 3 4 1 . Core 3 | . . . 1 2 . Reactor . | . . . . . . Propulsion 26 | 4 2 2 10 6 2 Treads 21 | 2 2 2 10 3 2 Leg 5 | 2 . . . 3 . Wheel . | . . . . . . Hover . | . . . . . . Flight . | . . . . . . Utility 17 | 1 3 5 2 4 2 Device 10 | . 2 2 1 4 1 Storage 2 | 1 1 . . . . Processor 4 | . . 2 1 . 1 Hackware . | . . . . . . Protection 1 | . . 1 . . . Artifact . | . . . . . . Weapon 62 | . 9 25 10 10 8 Energy Gun 10 | . 5 2 3 . . Energy Cannon 3 | . . 3 . . . Ballistic Gun 26 | . 3 11 6 6 . Ballistic Cannon 5 | . . . . . 5 Launcher . | . . . . . . Special Weapon . | . . . . . . Impact Weapon 15 | . 1 7 . 4 3 Slashing Weapon 2 | . . 2 . . . Piercing Weapon . | . . . . . . Special Melee Weapon 1 | . . . 1 . . Unidentified Prototypes 3 | . . 2 1 . . Parts Lost 32 | . . 8 10 14 . Power 9 | . . 2 4 3 . Propulsion 11 | . . 1 5 5 . Utility 4 | . . 2 . 2 . Weapon 8 | . . 3 1 4 . Highest Loss Streak 6 | . . 2 5 6 . To Critical Strikes 1 | . . . . 1 . Average Slot Usage (%) 90 | . 95 96 94 77 76 Engine 9 | . 14 10 12 2 . Core 1 | . . . 2 6 . Treads 18 | . 19 21 25 6 5 Leg 5 | . 8 . . 11 17 Device 13 | . 10 21 9 12 9 Storage 10 | . 14 11 9 9 9 Processor 9 | . . 5 18 12 17 Protection 1 | . . 4 . . . Energy Gun 3 | . 11 4 . . . Ballistic Gun 12 | . 11 13 17 11 . Ballistic Cannon 1 | . . . . . 16 Impact Weapon 2 | . 3 2 . 4 1 Naked Turns . | . . . . . . Heaviest Build 43 | 10 32 39 43 39 31 Greatest Support 63 | 40 40 40 63 63 42 Greatest Overweight (x) 10 | . 1 1 . 10 1 Average Overweight (x) . | . . . . . . Largest Inventory Capacity 15 | 8 15 15 15 15 15 Average Capacity 14 | 6 13 15 15 15 15 Most Carried 15 | 6 15 15 15 15 15 Average Carried 13 | 3 10 13 14 12 14 Final Capacity 15 | 8 15 15 15 15 15 Final Carried 15 | 6 15 15 15 15 15 Class Distribution -------------------- 65% | Mutant 34% | Scavenger-Mutant Dominant Class ---------------- Mutant | -10/Materials Mutant | -9/Materials Scavenger-Mutant | -8/Materials Scavenger-Mutant | -8/Garrison Mutant | -8/Materials Resources | -11 -10 -9 -8 -8 -8 ----------- Run | Jun Mat Mat Mat Gar Mat Matter Collected 3263 | 237 313 925 1302 410 76 Remotely 661 | . . 661 . . . Salvage Created 4425 | . 426 1750 1713 434 102 Parts 282 | . 35 125 99 11 12 Haulers Intercepted 8 | . 2 2 4 . . Recyclers Shooed . | . . . . . . Parts Field Recycled . | . . . . . . Retrieved Matter . | . . . . . . Parts Self-Destructed . | . . . . . . Prevented . | . . . . . . Kills | -11 -10 -9 -8 -8 -8 ------- Run | Jun Mat Mat Mat Gar Mat Combat Hostiles Destroyed 87 | . 10 35 31 9 2 Melee 6 | . 1 2 . 3 . Guns 72 | . 9 29 31 3 . Cannons 2 | . . . . . 2 AOE 2 | . . 2 . . . Classes Destroyed 13 | . 5 4 2 2 . Worker 4 | . . 2 2 . . Builder 5 | . 1 4 . . . Tunneler 1 | . . 1 . . . Hauler 8 | . 2 2 4 . . Recycler 6 | . . 2 4 . . Mechanic 1 | . . . 1 . . Watcher 10 | . 2 5 2 . 1 Swarmer 33 | . 6 13 14 . . Grunt 35 | . 4 15 10 5 1 Brawler 1 | . . . . 1 . Duelist 1 | . . . . 1 . Sentry 13 | . . 7 5 . 1 Hunter 4 | . . . 2 2 . Best Kill Streak 7 | . 4 6 7 3 1 Combat Bots Only 4 | . 3 3 4 3 1 Max Kills in Single Turn 2 | . 2 2 2 1 1 Gunslinging 1 | . . . 1 . . Exploded 1 | . . 1 . . . Melee 1 | . 1 1 . 1 . Uniques/NPCs Destroyed . | . . . . . . Combat | -11 -10 -9 -8 -8 -8 -------- Run | Jun Mat Mat Mat Gar Mat Damage Taken 5120 | . 305 1355 1884 1466 110 Core 775 | . 38 181 223 316 17 Absorbed by Shields . | . . . . . . Regen/Repaired (Parts) 275 | . 38 72 165 . . Core Remaining (%) 79 | 100 84 54 . . . Volleys Fired 340 | . 49 124 122 40 5 Largest 2 | . 2 2 2 2 2 Hottest 136 | . 112 136 122 56 88 Shots Fired 641 | . 87 242 243 59 10 Gun 609 | . 87 220 243 59 . Cannon 32 | . . 22 . . 10 Launcher . | . . . . . . Special . | . . . . . . Kinetic 489 | . 50 135 235 59 10 Thermal 42 | . 12 22 8 . . Explosive . | . . . . . . Electromagnetic 110 | . 25 85 . . . Robot Hit Streak 31 | . 9 17 31 20 8 Robot Miss Streak 5 | . 4 5 4 2 1 Penetration Max 1 | . . . 1 1 . Secondary Targets 8 | . 1 3 4 . . Max Gunslinging Chain 1 | . 1 1 1 . . Shots Hit Robots 443 | . 41 153 174 67 8 Core Hits 165 | . 17 59 70 15 4 Critical Kills 3 | . . 1 2 . . Critical Parts Destroyed 8 | . 1 2 3 2 . Critical Strikes 13 | . 1 5 5 2 . Destroy 9 | . 1 2 5 1 . Corrupt 2 | . . 2 . . . Smash 2 | . . 1 . 1 . Melee Attacks 82 | . 22 19 1 36 4 Impact 81 | . 22 19 . 36 4 Slashing . | . . . . . . Piercing . | . . . . . . Sneak Attacks 2 | . 2 . . . . Combat Hostiles 1 | . 1 . . . . Follow-up Attacks 1 | . . 1 . . . Damage Inflicted 8233 | . 642 2659 3096 1635 201 Guns 6699 | . 500 2310 3096 793 . Cannons 201 | . . . . . 201 Explosions 138 | . . 138 . . . Melee 1195 | . 142 211 . 842 . Ramming . | . . . . . . Kinetic 5924 | . 406 1499 3025 793 201 Thermal 223 | . 14 138 71 . . Explosive . | . . . . . . Electromagnetic 891 | . 80 811 . . . Impact 1195 | . 142 211 . 842 . Slashing . | . . . . . . Piercing . | . . . . . . Highest Corruption 4 | . . 4 . . . Average Corruption 4 | . . 4 . . . Corruption Purged . | . . . . . . Corruption Blocked . | . . . . . . Effects 31 | . . 31 . . . Message Errors 12 | . . 12 . . . Matter Fused 7 | . . 7 . . . Heat Flow Errors 1 | . . 1 . . . Energy Discharges 3 | . . 3 . . . Data Loss (minor) 2 | . . 2 . . . Data Loss (major) 3 | . . 3 . . . Misfires 3 | . . 3 . . . Overload Shots . | . . . . . . Overflow Damage 220 | . 10 74 . 136 . Projectiles . | . . . . . . Explosions 14 | . . 14 . . . Melee 206 | . 10 60 . 136 . Knockbacks 8 | . . 1 . 6 1 Impact 7 | . . 1 . 6 . Kinetic 1 | . . . . . 1 Secondary . | . . . . . . Self-Inflicted Damage 95 | . . 95 . . . Shots 3 | . . 3 . . . Rammed . | . . . . . . Targets Rammed . | . . . . . . Kicked . | . . . . . . Crushed . | . . . . . . Highest Temperature 303 | . 237 88 303 2 16 Average Temperature 36 | . 68 8 37 2 16 Received Heat Transfer 1470 | . 42 348 693 333 54 Siege Activations . | . . . . . . Robots Corrupted 1 | . . 1 . . . Combat Hostiles 1 | . . 1 . . . Parts Fried 7 | . 2 3 . 2 . Impact Corruptions 9 | . 1 2 . 6 . Robots Melted . | . . . . . . Combat Hostiles . | . . . . . . Parts Melted 1 | . . . 1 . . Heat Transferred 585 | . 37 400 148 . . Parts Sabotaged . | . . . . . . Parts Stolen . | . . . . . . Parts Stripped . | . . . . . . Power Chain Reactions 3 | . . 3 . . . Missiles Intercepted . | . . . . . . Alert | -11 -10 -9 -8 -8 -8 ------- Run | Jun Mat Mat Mat Gar Mat Peak Influence 578 | . 160 367 375 578 276 Initial 276 | . . . 23 234 276 Average 144 | . 35 121 136 370 149 Maximum Alert Level 2 | . . 1 1 2 1 Low Security (%) 69 | 100 100 81 72 . 58 Level 1 27 | . . 18 27 80 41 Level 2 2 | . . . . 19 . Level 3 . | . . . . . . Level 4 . | . . . . . . Level 5 . | . . . . . . High Security . | . . . . . . Max Security . | . . . . . . Squads Dispatched 10 | . 2 5 3 . . Investigation 6 | . 1 3 2 . . Extermination . | . . . . . . Reinforcement 4 | . 1 2 1 . . Assault . | . . . . . . Garrison . | . . . . . . Intercept . | . . . . . . Searches Triggered . | . . . . . . Construction Impeded 1 | . . 1 . . . Haulers Reinforced . | . . . . . . Active Scanning Responses . | . . . . . . Cargo Convoy Interrupts . | . . . . . . Stealth | -11 -10 -9 -8 -8 -8 --------- Run | Jun Mat Mat Mat Gar Mat Distress Signals 6 | . . 3 3 . . Communications Jammed . | . . . . . . Distress Signals . | . . . . . . Times Spotted 134 | . 19 60 36 11 8 Peak Tracking Total 6 | . 4 4 4 3 6 Tactical Retreats 6 | . 1 2 3 . . Traps | -11 -10 -9 -8 -8 -8 ------- Run | Jun Mat Mat Mat Gar Mat Traps Triggered 8 | . 1 2 . 5 . Indirectly . | . . . . . . Trap Hack Attempts . | . . . . . . Triggered . | . . . . . . Disarmed . | . . . . . . Reprogrammed . | . . . . . . Reused . | . . . . . . Traps Extracted . | . . . . . . Installed . | . . . . . . Triggered 1 | . . 1 . . . Machines | -11 -10 -9 -8 -8 -8 ---------- Run | Jun Mat Mat Mat Gar Mat Machines Disabled 6 | . 2 1 1 2 . Max in Single Turn 2 | . 2 1 1 1 . Garrison Relay 2 | . . . . 2 . Machines Repaired . | . . . . . . Machines Sabotaged . | . . . . . . Overloaded Fab Kills . | . . . . . . Hacking | -11 -10 -9 -8 -8 -8 --------- Run | Jun Mat Mat Mat Gar Mat Machines Accessed 36 | . 9 12 9 2 4 Terminals 26 | . 6 9 6 2 3 Fabricators . | . . . . . . Repair Stations 3 | . 1 1 1 . . Recycling Units 6 | . 2 2 1 . 1 Scanalyzers . | . . . . . . Garrison Access 1 | . . . 1 . . Total Hacks 105 | . 25 39 28 4 9 Successful 56 | . 16 22 13 1 4 Failed 48 | . 9 16 15 3 5 Catastrophic 3 | . . 2 1 . . Database Lockouts 1 | . . 1 . . . Manual 55 | . 12 29 9 . 5 Terminals 69 | . 13 31 14 4 7 Fabricators . | . . . . . . Repair Stations 12 | . 2 2 8 . . Recycling Units 22 | . 10 6 4 . 2 Scanalyzers . | . . . . . . Garrison Access 2 | . . . 2 . . Terminal Hacks 20 | . 5 8 3 1 3 Record 1 | . . 1 . . . Robot Analysis 2 | . . 2 . . . Prototype ID Bank 1 | . . . 1 . . Terminal Index 4 | . 1 1 1 . 1 Alert Level 5 | . 1 1 1 . 2 Unreport Threat 5 | . 2 3 . . . Zone Layout 1 | . 1 . . . . Patrol Navigation 1 | . . . . 1 . Fabricator Hacks . | . . . . . . Repair Station Hacks 10 | . 2 2 6 . . Scan Component 5 | . 1 1 3 . . Repair 5 | . 1 1 3 . . Recycling Unit Hacks 5 | . 2 3 . . . Retrieve Matter 1 | . . 1 . . . Retrieve Components 4 | . 2 2 . . . Scanalyzer . | . . . . . . Garrison Access Hacks 1 | . . . 1 . . Unlock Access 1 | . . . 1 . . Unauthorized Hacks 20 | . 7 9 3 . 1 Terminals 12 | . 4 6 2 . . Assimilate 3 | . 1 2 . . . Botnet 6 | . 2 3 1 . . Operators 3 | . 1 1 1 . . Fabricators . | . . . . . . Repair Stations . | . . . . . . Recycling Units 8 | . 3 3 1 . 1 Monitor 1 | . 1 . . . . Reject 6 | . 2 2 1 . 1 Recyclers 1 | . . 1 . . . Scanalyzers . | . . . . . . Garrison Access . | . . . . . . Data Cores Recovered . | . . . . . . Used . | . . . . . . Hacking Detections 28 | . 5 10 7 2 4 Full Trace Events 3 | . . 1 2 . . Feedback Events . | . . . . . . Feedback Blocked . | . . . . . . Robot Schematics Acquired . | . . . . . . Robots Built . | . . . . . . Authchips . | . . . . . . Time . | . . . . . . Total Robot Build Rating . | . . . . . . Part Schematics Acquired . | . . . . . . Parts Built . | . . . . . . Authchips . | . . . . . . Time . | . . . . . . Total Part Build Rating . | . . . . . . Parts Repaired 4 | . 1 1 2 . . Time 146 | . 18 32 96 . . Parts Recycled . | . . . . . . Recycled Matter . | . . . . . . Retrieved Matter . | . . . . . . Retrieved Components 22 | . 3 19 . . . Parts Scanalyzed . | . . . . . . Part Schematics Acquired . | . . . . . . Parts Damaged . | . . . . . . Bothacking | -11 -10 -9 -8 -8 -8 ------------ Run | Jun Mat Mat Mat Gar Mat Used RIF Installer . | . . . . . . Robots Hacked 1 | . . . 1 . . Non-combat 1 | . . . 1 . . Combat . | . . . . . . Robot Hacks Applied 1 | . . . 1 . . parse_system 1 | . . . 1 . . Relay Couplers Released 10 | . . . . 10 . Machine Destruction 10 | . . . . 10 . Fabnet Peak Effective % . | . . . . . . Robots Rewired . | . . . . . . Allies Hacked . | . . . . . . Hacks Repelled . | . . . . . . Allies | -11 -10 -9 -8 -8 -8 -------- Run | Jun Mat Mat Mat Gar Mat Total Allies 3 | . 1 2 . . . Largest Group 2 | . 1 2 2 . . Highest-Rated Group 20 | . 10 20 18 . . Highest-Rated Ally 10 | . 10 10 9 . . Total Orders 2 | . . . 2 . . STAY 1 | . . . 1 . . FOLLOW 1 | . . . 1 . . Ally Attacks . | . . . . . . Total Damage . | . . . . . . Kills . | . . . . . . Allies Corrupted . | . . . . . . Allies Melted . | . . . . . . Intel | -11 -10 -9 -8 -8 -8 ------- Run | Jun Mat Mat Mat Gar Mat Robot Analysis Total 2 | . . 2 . . . Derelict Logs Recovered . | . . . . . . Drone Launches . | . . . . . . Drone Recoveries . | . . . . . . Exploration | -11 -10 -9 -8 -8 -8 ------------- Run | Jun Mat Mat Mat Gar Mat Turns Passed 9811 | 80 2076 3081 2186 1423 965 Spaces Moved 4126 | 46 1069 1322 870 574 245 Core 15 | 6 . . . 9 . Treads 3292 | 36 700 1322 870 208 156 Legs 819 | 4 369 . . 357 89 Wheels . | . . . . . . Hover . | . . . . . . Flight . | . . . . . . Fastest Speed 50 | 50 120 160 160 120 120 Average Speed 160 | 142 147 160 160 170 194 Slowest Speed 550 | 160 190 240 160 550 225 Overloaded Moves . | . . . . . . Propulsion Burnouts . | . . . . . . Robots Hopped . | . . . . . . Cave-ins Triggered . | . . . . . . Exploration Rate (%) 46 | 3 95 75 47 40 21 Regions Visited 5 Branch Regions . Pre-discovered Areas . | . . . . . . Known Exits Taken 2 | . . 1 1 . . Unknown Exits Taken 2 | 1 1 . . . . Scrap Searched . | . . . . . . Spaces Dug 42 | . 12 21 . 5 4 Terrain Destroyed 101 | . 56 33 1 5 6 Melee 32 | . 12 11 . 5 4 Projectile 13 | . . 11 . . 2 AOE 55 | . 44 11 . . . Terrain Rammed . | . . . . . . Walls Destroyed . | . . . . . . Machines Disabled . | . . . . . . Actions | -11 -10 -9 -8 -8 -8 --------- Run | Jun Mat Mat Mat Gar Mat Total 6604 | 57 1443 2040 1447 902 715 Wait 1792 | . 262 508 385 195 442 Move 4122 | 45 1068 1321 870 573 245 Hop . | . . . . . . Pick Up 79 | 6 20 18 24 8 3 Fast Attach 27 | 4 . 7 6 7 3 Attach 30 | . 3 8 11 8 . Detach 1 | . . 1 . . . Swap 60 | 2 11 20 10 8 9 Drop 47 | . 8 15 18 2 4 Fire 340 | . 49 124 122 40 5 Melee 81 | . 22 18 1 36 4 Ram . | . . . . . . Kick . | . . . . . . Crush . | . . . . . . Escape Stasis 25 | . . . . 25 . Rewire . | . . . . . . Trap . | . . . . . . Miscellaneous . | . . . . . . Route ------- -11/Junkyard -10/Materials (discovered 4 exits: *Mat x3 / [*Min]) -9/Materials (discovered 4 exits: *Mat x3 / [*Min]) -8/Materials (discovered 3 exits: *Fac x2 / Gar) -8/Garrison -8/Materials History --------- Turn | Location | Event 11 | -11/Junkyard | Discovered new exit (range 16) 81 | -11/Junkyard | Entered Materials 291 | -10/Materials | Discovered new exit (range 16) 308 | -10/Materials | Build established: Mutant 453 | -10/Materials | Discovered new exit (range 4) 764 | -10/Materials | Discovered new exit (range 6) 1418 | -10/Materials | Discovered new exit (range 5) 1751 | -10/Materials | Repaired Corrupted Lgt. Treads 2157 | -10/Materials | Entered another Materials area 2157 | -9/Materials | Accompanied by 1 ally 2157 | -9/Materials | Evolved 2 slots: Utility x2 3031 | -9/Materials | Discovered new exit (range 8) 4193 | -9/Materials | Discovered new exit (range 10) 4637 | -9/Materials | Discovered new exit (range 13) 4669 | -9/Materials | Central database locked down 4816 | -9/Materials | Repaired Autogun 5060 | -9/Materials | Discovered new exit (range 15) 5082 | -9/Materials | Identified exit to Materials 5238 | -9/Materials | Entered another Materials area 5238 | -8/Materials | Accompanied by 2 allies 5238 | -8/Materials | Evolved 2 slots: Power x1, Propulsion x1 5580 | -8/Materials | Build established: Scavenger-Mutant 6324 | -8/Materials | Discovered new exit (range 11) 6362 | -8/Materials | Identified exit to Factory 6513 | -8/Materials | Lost 5 parts (3p2n) 6780 | -8/Materials | Discovered exit to Factory (range 10) 7084 | -8/Materials | Repaired Lgt. Treads 7136 | -8/Materials | Repaired Gauss Rifle 7424 | -8/Materials | Identified exit to Garrison 7424 | -8/Materials | Entered Garrison 7470 | -8/Garrison | Triggered checkpoint 7560 | -8/Garrison | Triggered checkpoint 7582 | -8/Garrison | Core integrity fell below 50% 7786 | -8/Garrison | Garrison Relay disabled 7928 | -8/Garrison | Lost 6 parts (1p3n1u1w) 7992 | -8/Garrison | Core integrity fell below 20% 8160 | -8/Garrison | Triggered checkpoint 8508 | -8/Garrison | Discovered new exit (range 13) 8572 | -8/Garrison | Garrison Relay disabled 8598 | -8/Garrison | Triggered checkpoint 8668 | -8/Garrison | Lost 4 parts (2p2w) 8780 | -8/Garrison | Triggered checkpoint 8847 | -8/Garrison | Entered Materials 9198 | -8/Materials | Build established: Mutant 9812 | -8/Materials | Destroyed by G-47 Trooper with Particle Gun Last Messages --------------- >>Trojan(Reject) Trojan loaded successfully. Testing... Ejection routine running. 09637_ K-01 Serf collects debris. 09641_ K-01 Serf cleans the Recycling Unit. 09645_ K-01 Serf collects debris. 09760_ U-05 Engineer builds a Wall. 09764_ Y-45 Defender destroyed. 09774_ Acquired 4 matter. 09776_ Acquired 40 matter. 09778_ K-01 Serf collects debris. 09780_ Dropped Carbon-fiber Leg. 09781_ Acquired Lgt. Treads. 09784_ Acquired 6 matter. 09784_ K-01 Serf collects debris. 09807_ K-01 Serf cleans the Terminal. 09809_ G-47 Trooper knocked back. 09812_ G-47 Trooper destroyed. [Achievement: Overachiever] Map ----- +----------------------------------------------------+ | ?????????????????????????????????????????????????? | | ?????????????????????????????????????????????????? | | ?????????????????????????????????????????????????? | | ?????????????????????????????????????????????????? | | ?????????????????????????????????????????????????? | | ?????????????????????????????????????????????????? | | ?????????????????????????????????????????????????? | | ?????????????????????????????????????????????????? | | ?????????????????????????????????????????????????? | | ?????????????????????????????????????????????????? | | ??????????????????????#??????????????????????????? | | ???????????????????##????????????????????????????? | | ????????????????????#?##????#?#? ????????????????? | | ?????????????????? ?????? ??? ???????????????????? | | ??????????????? ???????#?????????????????????????? | | ???????????????#???????????? ?????#?????????????? | | ???????????????#???????????? ??? ????????????????? | | ????????????????##??# ?? ??"??#?? ???????????????? | | ?????????????#?##???# ?#?? ? ?????#?????????????? | | ?????????????????#### #???????# ??#????????????? | | ??????????? ??? ?? k #####?????? ??????????????? | | ?????????? ???? ????g g u??? ??????? ?????????? | | ?????????????????????%ag ? ? ??? ??????????????? | | ??????????????? ??????*%! ? ? ??? ????????????? | | ?????????????????#?? ?#;;#### ????#?????????????? | | ????????? ??? ??#???#;@ ##?#??#????? ???????? | | ??????????????? ?#??##?##! #????## ???????????? | | ????????????????##??????# #????##???? ????????? | | ?????????????????? ##???# [ ###??###????????????? | | ????#?????#?? ???? ####?# #?##???#?#??????????? | | ####? ?#?? ?#????# ###?????##??????????? | | ?##### ? ?##??? ###### ####?##?????????????? | | ##### ### ? ? ###### k ####?######??#??????? | | ##### ?## ? ########/#####?#?##??#????????? | | ##?## ?###+##+######## ####?#?#???????????? | | ##### [ #########?#????????? | | ##### ####### !=! #####?###?#????????? | | ##### ? ####### ####???#?#?????????? | | ##### ? ####### ###?##?##?#?#??????? | | ##### ? ######### ###??####?#?#????????? | | ?##### ######### #######?######???????? | | ##### ######### ###########??#???????? | | ############+### ##?###### ##?#####?##??????????? | | ######### # #### # ########?####????????? | | +######### """# ####! # ###?####? ? #??????? | | #### """#+#### # ? ?????????? | | #### """# # # ? ?????????? | | = #### #"" # / ? ? ?????????? | | #### #"T #"" # ######+## ? ????????? | | " """ ###########"" #"Y # #? ?? #?? ?????????? | +----------------------------------------------------+ Best States ------------- Heat Dissipation 64 Energy Generation 27 Energy Capacity 265 Matter Stores 300 Matter Capacity 300 Sight Range 16 Terrain Scan Range 16 Terrain Scan Density 85 Armor Coverage 150 Evasion (%) 55 Targeting Accuracy 8 Recoil Reduction 3 Item Schematics ----------------- None Robot Schematics ------------------ None Fabricated ------------ Nothing Alien Tech Used ----------------- None Achievements -------------- Overachiever Use The Force Challenges ------------ None Game ------ Seed ShrapnelAluminumExpander Manual? 0 Play Time 01:27:40 Cumulative 110.2 hours Start 2023.07.11 @ 18:26:45 End 2023.07.11 @ 19:56:10 Sessions 1 Manual Loads 0 Difficulty Rogue Special Mode None Game No. 156 Rogue 156 Adventurer 0 Explorer 0 Win Type - Total 1 Types 1/0/0/0/0/0/0/0/0 Lore% 58 Gallery% 56 Achievement% 50 Wizard Run 0 Options --------- ASCII 0 Keyboard 0 Movement Numpad Keybinds 0 Fullscreen 1 Font 18/X11Bold Map View 76x50 Tactical HUD 1 Map Filters NONE Filters NONE Steam 1 RUN: be240ceb-b51d-4ab9-bd67-ecc18a8afd10